bitfinex/quotes_ETHUSD_20251126
["timestamp","ask_amount","ask_price","bid_price","bid_amount"]
[1764147389907,0.2182,2918.2,2917.6,3.42747463]
[1764147390088,0.31643438,2918.1,2917.6,3.90187463]
[1764147390419,0.31643438,2918.1,2917.7,0.4744]
[1764147390810,0.72193838,2918.1,2918.0,0.5]
[1764147391007,0.0012,2918.2,2918.0,4.40140479]
[1764147391314,0.0012,2918.2,2918.1,0.5]
[1764147391833,0.31766617,2918.2,2918.1,0.5]
[1764147392002,0.0012,2918.2,2918.1,0.5]
[1764147392493,0.31766617,2918.2,2918.1,0.5]
[1764147392686,0.0012,2918.2,2918.1,0.5]
[1764147392902,0.0012,2918.2,2918.1,3.92688735]
[1764147393119,0.0012,2918.2,2918.1,4.12058735]
[1764147393557,0.0012,2918.2,2918.1,4.59498735]
[1764147396564,0.0012,2918.2,2918.1,4.06420542]
[1764147397138,0.4946,2918.2,2917.8,2.72]
[1764147397353,0.4946,2918.2,2917.8,2.937]
[1764147397553,0.4946,2918.2,2917.9,0.4744]
[1764147397771,0.4946,2918.2,2918.1,0.6937]
[1764147397772,0.0012,2918.2,2918.1,0.6937]
[1764147397950,0.0012,2918.2,2918.1,1.1681]
[1764147399171,0.0012,2918.2,2918.1,4.59498735]
[1764147401269,0.0012,2918.2,2918.1,7.32443003]
[1764147401475,0.0012,2918.2,2918.1,7.29016116]
[1764147401777,0.0012,2918.2,2918.1,7.69766516]
[1764147402184,0.0012,2918.2,2918.1,11.14325927]
[1764147402964,0.002,2918.5,2918.2,0.72559411]
[1764147403276,0.002,2918.5,2918.4,7.347303]
[1764147403650,0.0012,2918.5,2918.4,7.821703]
[1764147403851,0.0012,2918.5,2918.4,4.64242919]
[1764147404050,0.0012,2918.5,2918.4,5.33462919]
[1764147404352,0.0012,2918.5,2918.4,4.85942919]
[1764147404568,0.0012,2918.5,2918.4,1.21589411]
[1764147404765,0.4691,2918.5,2918.1,0.601204]
[1764147404956,0.4626,2918.4,2918.2,3.42676992]
[1764147405461,0.0012,2918.5,2918.2,3.42676992]
[1764147406260,0.0012,2918.5,2918.2,3.90196992]
[1764147406459,0.0012,2918.5,2918.4,0.4903]
[1764147406858,0.4691,2918.5,2918.2,6.85353984]
[1764147407062,0.0012,2918.5,2918.4,0.4903]
[1764147407463,0.0012,2918.5,2918.4,4.60903508]
[1764147407794,0.0012,2918.5,2918.4,5.33462919]
[1764147409099,0.0012,2918.5,2918.4,5.11762919]
[1764147409264,0.0012,2918.5,2918.4,5.33462919]
[1764147409884,0.0012,2918.5,2918.4,4.64242919]
[1764147410564,0.0012,2918.5,2918.4,5.11762919]
[1764147411167,0.0012,2918.5,2918.4,5.15189454]
[1764147411363,0.0012,2918.5,2918.4,5.11762919]
[1764147411569,0.0012,2918.5,2918.4,5.25492228]
[1764147412399,0.0012,2918.5,2918.4,4.77972228]
[1764147412589,0.0012,2918.5,2918.4,5.25492228]
[1764147413596,0.0012,2918.5,2918.4,5.28918763]
[1764147413907,0.0012,2918.5,2918.4,5.25492228]
[1764147415593,0.0012,2918.5,2918.4,4.99672228]
[1764147416117,0.0012,2918.5,2918.4,5.47192228]
[1764147417577,0.0012,2918.5,2918.4,4.99672228]
[1764147418804,0.0012,2918.5,2918.4,5.47192228]
[1764147421216,0.4691,2918.5,2918.4,4.28942228]
[1764147421418,0.4691,2918.5,2918.4,7.00942228]
[1764147421927,0.0012,2918.5,2918.4,7.49972228]
[1764147422216,0.0012,2918.5,2918.4,10.67009609]
[1764147423528,0.0012,2918.5,2918.4,10.67109609]
[1764147423817,0.0012,2918.5,2918.4,7.01042228]
[1764147423986,0.0012,2918.5,2918.4,7.48542228]
[1764147424384,0.0012,2918.5,2918.4,7.93742228]
[1764147426936,0.3362,2918.5,2918.4,0.13829309]
[1764147427230,0.3362,2918.5,2918.4,0.001]
[1764147427433,0.3362,2918.5,2918.4,3.42753508]
[1764147427596,0.8332,2918.5,2918.4,0.001]
[1764147427796,0.8332,2918.5,2918.4,3.42753508]
[1764147428331,0.8324,2918.5,2918.4,0.001]
[1764147431017,0.8324,2918.5,2917.8,0.001]
[1764147431018,0.405504,2918.0,2917.8,0.001]
[1764147431213,0.958104,2917.9,2917.8,0.001]
[1764147431417,5.19318466,2917.9,2917.8,0.001]
[1764147431642,2.49801085,2917.9,2917.8,0.001]
[1764147431806,3.52838101,2917.9,2917.8,0.001]
[1764147432339,4.98840873,2917.9,2917.8,0.001]
[1764147432704,8.41553097,2917.9,2917.8,0.001]
[1764147433935,10.37627117,2917.9,2917.8,0.001]
[1764147434130,9.34590101,2917.9,2917.8,0.001]
[1764147434438,8.61736628,2917.9,2917.8,0.001]
[1764147434644,5.92219247,2917.9,2917.8,0.001]
[1764147435252,5.60622035,2917.9,2917.8,0.001]
[1764147435747,5.92087236,2917.9,2917.8,0.001]
[1764147436949,5.60622035,2917.9,2917.8,0.001]
[1764147438334,1.13109811,2917.8,2916.7,1.03027108]
[1764147438555,0.2326,2916.8,2915.7,0.4728]
[1764147438861,0.4611,2916.7,2916.0,6.85871056]
[1764147441654,0.4611,2916.7,2916.1,0.03429237]
[1764147443371,0.4611,2916.7,2916.2,3.42912008]
[1764147443762,0.3631,2916.3,2916.2,3.42912008]
[1764147444077,0.3631,2916.3,2916.0,4.15494939]
[1764147444364,0.3631,2916.3,2916.0,7.58430467]
[1764147445547,0.4601,2916.5,2916.0,7.58430467]
[1764147445548,0.8728,2916.8,2916.2,0.4967]
[1764147445966,0.1937,2916.8,2916.2,0.4967]
[1764147446149,0.623504,2916.9,2916.3,0.4728]
[1764147446650,0.623504,2916.9,2916.1,0.1897]
[1764147446864,0.4611,2916.8,2916.1,0.1897]
[1764147447060,0.4611,2916.8,2916.0,7.58430467]
[1764147448543,0.405504,2916.7,2915.8,6.85912502]
[1764147448968,0.405504,2916.5,2915.8,6.85912502]
[1764147449386,0.4611,2916.4,2915.8,6.85912502]
[1764147449887,0.866604,2916.7,2915.9,0.4728]
[1764147450072,0.866604,2916.7,2915.6,0.4728]
[1764147450274,0.405504,2916.5,2915.6,0.4728]
[1764147450496,0.405504,2916.5,2915.7,0.218]
[1764147450712,0.4611,2916.5,2915.7,0.6908]
[1764147451011,0.4611,2916.5,2915.8,0.218]
[1764147451506,0.4611,2916.5,2915.9,6.85894578]
[1764147451916,0.405504,2916.7,2915.9,6.85894578]
[1764147452214,0.405504,2916.7,2916.0,0.4728]
[1764147452511,0.866604,2916.7,2916.0,0.4728]
[1764147453083,0.865804,2916.7,2916.0,0.4728]
[1764147453532,0.865804,2916.7,2916.1,3.42923768]
[1764147454046,0.34751203,2916.6,2915.8,3.64749597]
[1764147454203,0.34751203,2916.6,2915.9,0.4728]
[1764147454606,6.85712642,2916.7,2915.5,3.42984754]
[1764147454841,0.218,2916.9,2915.6,0.72559411]
[1764147455041,0.623504,2916.9,2915.7,0.4728]
[1764147455346,0.405504,2916.7,2915.7,0.4728]
[1764147456204,0.405504,2916.8,2915.8,12.91962739]
[1764147456403,0.405504,2916.8,2915.9,0.72559411]
[1764147456628,0.405504,2916.8,2916.0,0.218]
[1764147456803,0.405504,2916.8,2916.0,0.6908]
[1764147457006,0.405504,2916.8,2916.1,0.1897]
[1764147457238,0.405504,2916.8,2916.7,0.4967]
[1764147457435,0.405504,2916.8,2916.1,0.6625]
[1764147457623,0.405504,2916.8,2916.2,0.4728]
[1764147458338,0.405504,2916.8,2916.3,6.858005]
[1764147458821,0.405504,2916.8,2916.3,7.330805]
[1764147459025,3.42758378,2917.6,2916.7,0.4967]
[1764147459202,1.50173964,2917.4,2916.8,0.4967]
[1764147459407,0.31490011,2917.3,2916.5,0.001]
[1764147459642,0.405504,2917.2,2916.5,0.001]
[1764147459839,0.002,2916.8,2916.5,0.001]
[1764147460333,0.002,2916.8,2916.7,3.92523224]
[1764147461119,0.405504,2916.7,2916.5,0.001]
[1764147461532,0.4611,2916.6,2916.5,0.001]
[1764147462220,0.002,2916.8,2916.5,0.001]
[1764147462425,0.4773,2916.6,2916.5,0.001]
[1764147467450,0.79358975,2916.6,2916.5,0.001]
[1764147468236,0.79372457,2916.6,2916.5,0.001]
[1764147469173,1.52278988,2916.6,2916.5,0.001]
[1764147469953,1.92829388,2916.6,2916.5,0.001]
[1764147470755,5.35694367,2916.6,2916.5,0.001]
[1764147472664,1.50748988,2916.6,2916.5,0.001]
[1764147472847,1.91299388,2916.6,2916.5,0.001]
[1764147477886,1.91219388,2916.6,2916.5,0.001]
[1764147478551,1.18312857,2916.6,2916.5,0.001]
[1764147478747,1.91153114,2916.6,2916.5,0.001]
[1764147478985,1.91353114,2916.6,2916.5,0.001]
[1764147479888,5.34218093,2916.6,2916.5,0.001]
[1764147480186,1.91353114,2916.6,2916.5,0.001]
[1764147481083,1.45153114,2916.6,2916.5,0.4763]
[1764147481289,0.407504,2916.6,2916.5,0.9558]
[1764147482654,0.002,2916.6,2916.5,0.9558]
[1764147482995,0.002,2916.6,2916.5,4.38456735]
[1764147484592,0.002,2916.6,2916.5,4.41885502]
[1764147484789,0.002,2916.6,2916.5,4.38456735]
[1764147486402,0.002,2916.6,2916.5,3.90506735]
[1764147486775,0.002,2916.6,2916.5,3.42976735]
[1764147486976,0.002,2916.6,2916.5,0.001]
[1764147487175,0.002,2916.6,2916.5,0.4626]
[1764147487396,0.002,2916.6,2916.5,0.001]
[1764147487817,0.002,2916.6,2916.5,0.4626]
[1764147488113,0.002,2916.6,2916.5,0.9407]
[1764147488477,0.002,2916.6,2916.5,0.4626]
[1764147489079,0.002,2916.6,2916.5,0.001]
[1764147490204,0.002,2916.6,2916.5,0.4626]
[1764147491009,0.002,2916.6,2916.5,0.9407]
[1764147492126,0.002,2916.6,2916.5,4.36946735]
[1764147493945,0.002,2916.6,2916.5,0.4626]
[1764147494130,0.002,2916.6,2916.5,3.89136735]
[1764147494313,0.002,2916.6,2916.5,3.42976735]
[1764147494838,0.002,2916.6,2916.5,4.38746735]
[1764147496003,0.002,2916.6,2916.5,0.9587]
[1764147496431,0.002,2916.6,2916.5,4.38746735]
[1764147497835,0.002,2916.6,2916.5,5.33006146]
[1764147498009,0.002,2916.6,2916.5,5.73756546]
[1764147498211,0.002,2916.6,2916.5,5.33006146]
[1764147499225,0.002,2916.6,2916.5,5.11306146]
[1764147499432,0.002,2916.6,2916.5,4.64276146]
[1764147499742,0.002,2916.6,2916.5,5.11306146]
[1764147502324,0.002,2916.6,2916.5,5.33006146]
[1764147502642,0.0012,2916.6,2916.5,5.33006146]
[1764147505729,0.0012,2916.6,2916.5,5.11306146]
[1764147506066,0.0012,2916.6,2916.5,5.33006146]
[1764147507943,0.0012,2916.6,2916.5,4.85976146]
[1764147508253,0.0012,2916.6,2916.5,4.13416735]
[1764147508842,0.0012,2916.6,2916.5,4.60446735]
[1764147510030,0.0012,2916.6,2916.5,4.13416735]
[1764147510426,0.0012,2916.6,2916.5,4.60446735]
[1764147510930,0.0012,2916.6,2916.5,4.38746735]
[1764147511129,0.0012,2916.6,2916.5,4.13416735]
[1764147511363,0.0012,2916.6,2916.5,3.42976735]
[1764147512036,0.5416,2916.6,2916.5,3.42976735]
[1764147513173,0.947104,2916.6,2916.5,3.42976735]
[1764147513766,0.947104,2916.6,2916.5,0.001]
[1764147513972,0.497404,2916.6,2916.5,0.001]
[1764147515075,0.406704,2916.6,2916.5,0.001]
[1764147515737,0.406704,2916.6,2916.5,0.4884]
[1764147516166,0.500904,2916.6,2916.5,0.001]
[1764147516343,0.500904,2916.6,2916.5,3.42976735]
[1764147516963,0.406704,2916.6,2916.5,3.42976735]
[1764147517636,0.504504,2916.6,2916.5,3.42976735]
[1764147517836,0.504504,2916.6,2916.5,0.001]
[1764147519066,0.0012,2916.6,2916.5,0.4884]
[1764147519274,0.0012,2916.6,2916.5,0.9587]
[1764147520049,0.0012,2916.6,2916.5,4.38746735]
[1764147523553,0.0012,2916.6,2916.5,4.60446735]
[1764147523759,0.0012,2916.6,2916.5,4.63875502]
[1764147523958,0.0012,2916.6,2916.5,4.60446735]
[1764147524981,0.0012,2916.6,2916.5,7.32446735]
[1764147526114,0.0012,2916.6,2916.5,6.85416735]
[1764147526785,0.0012,2916.6,2916.5,6.63716735]
[1764147527000,0.0012,2916.6,2916.5,6.85416735]
[1764147527197,0.0004,2916.6,2916.5,6.85416735]
[1764147528395,0.0004,2916.6,2916.5,4.59096735]
[1764147530611,0.0004,2916.6,2916.5,4.13416735]
[1764147531075,0.0004,2916.6,2916.5,4.59096735]
[1764147531907,0.0004,2916.6,2916.5,3.42976735]
[1764147532115,0.0004,2916.6,2916.5,3.91786735]
[1764147532299,0.0004,2916.6,2916.5,4.37466735]
[1764147534215,0.0004,2916.6,2916.5,7.09466735]
[1764147535018,0.0004,2916.6,2916.5,6.14976735]
[1764147535513,0.0004,2916.6,2916.5,6.63786735]
[1764147535723,0.0004,2916.6,2916.5,7.09466735]
[1764147537127,0.0004,2916.6,2916.5,6.63786735]
[1764147537513,0.0004,2916.6,2916.5,3.91786735]
[1764147537709,0.0549,2916.6,2916.5,3.42976735]
[1764147540334,0.0549,2916.6,2916.5,0.001]
[1764147541039,0.945904,2916.6,2916.5,0.001]
[1764147542342,0.460404,2916.6,2916.5,0.001]
[1764147548517,0.922004,2916.6,2916.5,0.001]
[1764147548712,0.460404,2916.6,2916.5,0.001]
[1764147548941,0.922004,2916.6,2916.5,0.001]
[1764147551268,0.460404,2916.6,2916.5,0.001]
[1764147551642,0.488404,2916.6,2916.5,0.001]
[1764147551968,0.487604,2916.6,2916.5,0.001]
[1764147553048,0.405104,2916.6,2916.5,0.001]
[1764147553249,0.405104,2916.6,2916.5,0.9413]
[1764147554738,0.002,2916.8,2916.5,0.9413]
[1764147555052,0.002,2916.8,2916.5,4.37001908]
[1764147555260,0.407504,2916.8,2916.6,0.03428649]
[1764147555652,0.002,2916.8,2916.6,0.03428649]
[1764147556266,0.002,2916.8,2916.7,0.921]
[1764147556462,0.002,2916.8,2916.7,0.4683]
[1764147556663,0.002,2916.8,2916.7,0.921]
[1764147557364,0.002,2916.8,2916.7,4.34953224]
[1764147557561,0.002,2916.8,2916.7,3.89683224]
[1764147557878,0.002,2916.8,2916.7,3.42853224]
[1764147558085,0.002,2916.8,2916.7,6.61683224]
[1764147558381,0.002,2916.8,2916.7,7.06953224]
[1764147562080,0.002,2916.8,2916.7,7.42390832]
[1764147563113,0.002,2916.8,2916.7,3.32567608]
[1764147563292,0.0775,2916.8,2916.7,6.28590832]
[1764147563470,0.002,2916.8,2916.7,6.75420832]
[1764147563672,0.002,2916.8,2916.7,7.20690832]
[1764147564006,0.002,2916.8,2916.7,4.48690832]
[1764147566702,0.002,2916.8,2916.7,7.20690832]
[1764147567391,0.002,2916.8,2916.7,7.42390832]
[1764147568306,0.002,2916.8,2916.7,7.20690832]
[1764147568685,0.002,2916.8,2916.7,7.42390832]
[1764147568873,0.002,2916.8,2916.7,7.20690832]
[1764147569073,0.002,2916.8,2916.7,7.42390832]
[1764147572437,0.002,2916.8,2916.7,6.97120832]
[1764147573010,0.002,2916.8,2916.7,7.42390832]
[1764147574790,0.002,2916.8,2916.7,6.97120832]
[1764147575002,0.002,2916.8,2916.7,6.50290832]
[1764147575205,0.0775,2916.8,2916.7,6.28590832]
[1764147576119,0.002,2916.8,2916.7,6.75420832]
[1764147576830,0.0012,2916.8,2916.7,6.75420832]
[1764147577918,0.0012,2916.8,2916.7,6.28590832]
[1764147578124,0.0806,2916.8,2916.7,6.28590832]
[1764147580393,0.0012,2916.8,2916.7,6.75420832]
[1764147581256,0.0012,2916.8,2916.7,7.20690832]
[1764147581424,0.0012,2916.8,2916.7,6.75420832]
[1764147582194,0.0012,2916.8,2916.7,7.20690832]
[1764147585403,0.0012,2916.8,2916.7,6.28590832]
[1764147585605,0.0593,2916.8,2916.7,6.28590832]
[1764147586298,0.0012,2916.8,2916.7,6.76120832]
[1764147589117,0.0012,2916.8,2916.7,7.23460832]
[1764147589318,0.0012,2916.8,2916.7,6.76120832]
[1764147589630,0.4882,2916.8,2916.7,6.28590832]
[1764147592023,0.0012,2916.8,2916.7,6.76120832]
[1764147592344,0.0012,2916.8,2916.7,7.23460832]
[1764147592710,0.0012,2916.8,2916.7,6.28590832]
[1764147593642,0.0012,2916.8,2916.7,6.76120832]
[1764147595014,0.0012,2916.8,2916.7,6.28590832]
[1764147595910,0.0012,2916.8,2916.7,6.76120832]
[1764147596516,0.0012,2916.8,2916.7,7.23460832]
[1764147597537,0.0012,2916.8,2916.7,7.45160832]
[1764147600258,0.0593,2916.8,2916.7,2.85737608]
[1764147600452,0.85872013,2916.8,2916.7,2.85737608]
[1764147600977,1.99577966,2916.8,2916.7,2.72]
[1764147601174,1.26422413,2916.8,2916.7,2.72]
[1764147601375,0.895604,2916.7,2916.6,0.001]
[1764147601576,4.57464517,2916.7,2916.6,0.001]
[1764147601933,8.72877152,2916.7,2916.6,0.001]
[1764147602740,2.6696938,2916.7,2916.6,0.001]
[1764147602947,0.0048,2916.7,2916.6,0.001]
[1764147603242,0.0012,2916.8,2916.6,0.001]
[1764147603448,0.406704,2916.8,2916.6,0.001]
[1764147603790,0.0012,2916.8,2916.6,0.001]
[1764147605241,0.0581,2916.7,2916.6,0.001]
[1764147605446,0.463604,2916.7,2916.6,0.001]
[1764147605760,0.463604,2916.7,2916.6,2.85840203]
[1764147606160,0.945504,2916.7,2916.6,2.85840203]
[1764147607037,0.405504,2916.7,2916.6,2.85840203]
[1764147607348,0.467904,2916.7,2916.6,2.85840203]
[1764147608466,0.945604,2916.7,2916.6,2.85840203]
[1764147608761,0.945604,2916.7,2916.6,2.721]
[1764147609743,0.467904,2916.7,2916.6,2.721]
[1764147610573,0.945604,2916.7,2916.6,2.721]
[1764147610942,0.467904,2916.7,2916.6,2.721]
[1764147611466,0.405504,2916.7,2916.6,3.650104]
[1764147611677,0.405504,2916.7,2916.6,0.930104]
[1764147611862,0.0012,2916.8,2916.6,10.99040358]
[1764147612043,0.0012,2916.8,2916.7,0.9442]
[1764147612553,0.0012,2916.8,2916.7,4.37273224]
[1764147612754,0.0012,2916.8,2916.7,5.09832635]
[1764147614477,0.0012,2916.8,2916.7,5.13261167]
[1764147614880,0.0012,2916.8,2916.7,5.09832635]
[1764147616556,0.0012,2916.8,2916.7,3.88973224]
[1764147616798,0.0012,2916.8,2916.7,4.38183224]
[1764147618863,0.0012,2916.8,2916.7,3.88973224]
[1764147619005,0.0012,2916.8,2916.7,4.38183224]
[1764147619313,0.0012,2916.8,2916.7,7.13611756]
[1764147619534,0.0012,2916.8,2916.7,7.10183224]
[1764147624115,0.0012,2916.8,2916.7,7.23919511]
[1764147624619,0.0012,2916.8,2916.7,4.73619511]
[1764147624923,0.946804,2916.8,2916.6,0.001]
[1764147625125,0.0688,2916.7,2916.6,0.001]
[1764147625300,0.5401,2916.7,2916.6,0.001]
[1764147625922,0.0647,2916.7,2916.6,3.42964979]
[1764147626107,0.0639,2916.7,2916.6,3.42964979]
[1764147626815,0.0639,2916.7,2916.6,0.001]
[1764147627398,0.944804,2916.7,2916.6,0.001]
[1764147628920,0.469404,2916.7,2916.6,0.001]
[1764147630834,0.405504,2916.7,2916.6,0.4895]
[1764147631160,0.405504,2916.7,2916.6,0.001]
[1764147631299,0.882904,2916.7,2916.6,0.001]
[1764147633638,0.0012,2916.8,2916.6,0.9816]
[1764147633804,0.0012,2916.8,2916.6,0.4895]
[1764147634316,0.0012,2916.8,2916.6,0.001]
[1764147634721,0.0012,2916.8,2916.7,0.4885]
[1764147635940,0.0012,2916.8,2916.7,3.91703224]
[1764147636442,0.5405,2916.8,2916.6,3.64864616]
[1764147636735,0.068,2916.7,2916.6,3.42964616]
[1764147637338,0.0012,2916.8,2916.6,6.85829595]
[1764147637740,0.0012,2916.8,2916.7,0.4885]
[1764147638102,0.0012,2916.8,2916.7,3.91703224]
[1764147638323,0.0012,2916.8,2916.7,4.40913224]
[1764147638519,0.0012,2916.8,2916.6,3.42959329]
[1764147638742,0.4754,2916.7,2916.6,3.42959329]
[1764147638943,0.0012,2916.8,2916.6,3.42959329]
[1764147639810,0.0012,2916.8,2916.6,6.85824308]
[1764147640011,0.0639,2916.7,2916.6,3.42959329]
[1764147640357,3.64294146,2916.7,2916.6,0.001]
[1764147640508,5.4137004,2916.7,2916.6,0.001]
[1764147640706,1.13109811,2916.6,2916.5,0.001]
[1764147640919,2.93576294,2916.6,2916.5,0.001]
[1764147641142,6.27333994,2916.6,2916.5,0.001]
[1764147641355,6.27333994,2916.6,2915.2,3.43023219]
[1764147641356,0.405504,2916.2,2914.7,3.43085815]
[1764147641528,3.7000073,2916.1,2915.1,3.73561477]
[1764147641712,5.1544004,2916.1,2915.1,0.30520286]
[1764147641918,2.92956294,2916.1,2915.1,0.30520286]
[1764147642115,2.92956294,2916.1,2915.1,3.73551882]
[1764147642116,4.89890141,2916.1,2915.1,3.73551882]
[1764147642337,8.32813909,2916.1,2915.1,3.73557077]
[1764147642541,5.63000163,2916.1,2915.1,3.73557077]
[1764147642835,5.62926179,2916.1,2915.1,0.11290286]
[1764147643036,6.35677987,2916.1,2915.1,3.54330182]
[1764147643221,6.35619777,2916.1,2915.1,0.11290286]
[1764147644106,1.13109811,2916.0,2915.1,0.11290286]
[1764147644434,0.502504,2915.2,2915.1,0.11290286]
[1764147645310,0.5663288,2915.2,2914.4,0.467]
[1764147645510,0.217,2915.2,2915.1,0.4867]
[1764147646130,0.217,2915.2,2914.8,0.467]
[1764147646626,0.217,2915.2,2914.9,3.43064942]
[1764147646834,0.217,2915.2,2915.1,0.6819]
[1764147647428,0.405504,2915.6,2915.1,0.6819]
[1764147647615,0.622504,2915.6,2915.1,1.1489]
[1764147647826,0.622504,2915.6,2915.1,0.6819]
[1764147648029,0.622504,2915.6,2915.2,0.467]
[1764147649243,0.622504,2915.6,2915.3,3.43017871]
[1764147649906,3.96578312,2917.3,2915.3,3.43017871]
[1764147649907,0.0923,2916.1,2915.5,0.4867]
[1764147650110,0.3093,2916.1,2915.5,0.4867]
[1764147650626,0.405504,2916.0,2915.5,0.4867]
[1764147650940,0.404704,2916.0,2915.5,0.4867]
[1764147651241,0.404704,2916.0,2915.6,7.32665152]
[1764147651451,0.0923,2916.7,2915.9,0.4867]
[1764147651616,0.217,2916.5,2916.0,0.4867]
[1764147651812,0.0923,2916.7,2916.0,0.4867]
[1764147652011,0.0923,2916.7,2916.4,0.4867]
[1764147652510,0.0923,2916.7,2916.1,0.6622]
[1764147652937,0.405504,2916.6,2916.1,0.6622]
[1764147653545,0.405504,2916.6,2916.2,3.42912008]
[1764147653912,0.405504,2916.6,2916.2,6.85824016]
[1764147654210,0.405504,2916.6,2916.2,7.32524016]
[1764147654608,0.405504,2916.6,2916.5,0.4867]
[1764147654810,0.405504,2916.6,2916.2,6.85824016]
[1764147655446,0.405504,2916.6,2916.2,7.32524016]
[1764147655617,0.0012,2916.8,2916.5,0.4867]
[1764147656722,0.406704,2916.8,2916.5,0.4867]
[1764147657145,0.406704,2916.8,2916.7,0.4867]
[1764147657851,0.406704,2916.8,2916.5,3.42875481]
[1764147658039,0.406704,2916.8,2916.5,6.85752216]
[1764147658734,0.406704,2916.8,2916.5,3.42875481]
[1764147658925,0.0012,2916.8,2916.5,6.85752216]
[1764147659127,0.0012,2916.8,2916.7,0.4867]
[1764147659854,0.0012,2916.8,2916.7,3.91523224]
[1764147660218,0.1749,2916.8,2916.1,0.6622]
[1764147660426,0.1749,2916.8,2916.4,0.219]
[1764147660620,0.1749,2916.8,2916.2,6.85813908]
[1764147660820,0.1749,2916.8,2916.3,0.4677]
[1764147661344,0.1749,2916.8,2916.3,0.9347]
[1764147661541,0.869504,2916.7,2916.2,3.429019]
[1764147661745,0.869504,2916.7,2916.0,0.001]
[1764147661746,0.0853,2916.3,2916.1,3.429191]
[1764147662059,0.873204,2916.6,2916.0,3.43035528]
[1764147662652,0.405504,2916.4,2916.0,3.43035528]
[1764147662851,0.405504,2916.4,2916.0,6.85971056]
[1764147663057,0.405504,2916.4,2916.0,7.31381056]
[1764147663929,0.405504,2916.4,2916.0,0.001]
[1764147664129,0.405504,2916.5,2916.0,0.001]
[1764147664457,0.405504,2916.5,2916.0,0.4551]
[1764147665427,0.897104,2916.5,2916.0,0.001]
[1764147666258,0.405504,2916.6,2916.0,0.4551]
[1764147666428,0.058,2916.1,2916.0,0.001]
[1764147666629,2.69947086,2916.2,2916.0,0.001]
[1764147666959,0.7042,2916.4,2916.0,0.001]
[1764147666960,0.405504,2916.3,2916.0,0.001]
[1764147668756,0.058,2916.1,2916.0,0.001]
[1764147668965,0.463504,2916.1,2916.0,0.001]
[1764147669130,1.67629811,2916.1,2916.0,0.001]
[1764147670232,5.42111932,2916.1,2916.0,0.001]
[1764147670654,1.99188164,2916.1,2916.0,0.001]
[1764147670831,0.463504,2916.1,2916.0,0.001]
[1764147671031,0.950704,2916.1,2916.0,0.001]
[1764147672232,1.67629811,2916.1,2916.0,0.001]
[1764147672725,0.405504,2916.1,2916.0,0.001]
[1764147672923,0.217,2916.4,2916.0,0.001]
[1764147673327,0.405504,2916.3,2916.0,0.001]
[1764147674268,0.058,2916.1,2916.0,0.001]
[1764147674676,0.931104,2916.1,2916.0,0.001]
[1764147674826,0.463504,2916.1,2916.0,0.001]
[1764147675470,0.931104,2916.1,2916.0,0.001]
[1764147675672,0.930304,2916.1,2916.0,0.001]
[1764147676477,5.08513579,2916.1,2916.0,0.001]
[1764147676774,5.40102477,2916.1,2916.0,0.001]
[1764147677773,1.97178709,2916.1,2916.0,0.001]
[1764147677951,1.50424547,2916.1,2916.0,0.001]
[1764147678148,1.18829811,2916.1,2916.0,0.001]
[1764147678347,1.50429116,2916.1,2916.0,0.001]
[1764147678543,4.93352884,2916.1,2916.0,0.001]
[1764147678760,5.40112884,2916.1,2916.0,0.001]
[1764147679161,1.97189116,2916.1,2916.0,0.001]
[1764147679575,0.72559411,2916.1,2916.0,0.4726]
[1764147679949,0.002,2916.3,2916.0,0.4726]
[1764147680152,0.081,2916.1,2916.0,0.001]
[1764147680347,0.002,2916.3,2916.0,0.001]
[1764147680577,0.081,2916.1,2916.0,0.001]
[1764147680780,0.486504,2916.1,2916.0,0.001]
[1764147681404,0.405504,2916.1,2916.0,0.4726]
[1764147682560,0.002,2916.3,2916.0,7.80191056]
[1764147682772,0.002,2916.3,2916.2,0.6608]
[1764147683817,0.002,2916.3,2916.2,1.1314]
[1764147684218,0.002,2916.3,2916.2,0.4716]
[1764147684373,0.083,2916.3,2916.0,3.43035528]
[1764147685875,0.002,2916.3,2916.2,0.4716]
[1764147686776,0.002,2916.3,2916.2,3.90072008]
[1764147688111,0.002,2916.3,2916.2,0.4716]
[1764147688278,0.5284,2916.2,2916.1,3.42918647]
[1764147688880,0.5284,2916.2,2916.1,3.90078647]
[1764147690182,0.5284,2916.2,2916.1,4.37138647]
[1764147692110,0.5284,2916.2,2916.1,4.40567884]
[1764147692309,0.002,2916.3,2916.1,4.40567884]
[1764147692619,0.002,2916.3,2916.2,0.9422]
[1764147692780,0.002,2916.3,2916.2,1.07957372]
[1764147692979,0.002,2916.3,2916.2,1.83945903]
[1764147693206,0.002,2916.3,2916.2,1.80516783]
[1764147693715,0.002,2916.3,2916.2,1.83945903]
[1764147694376,0.002,2916.3,2916.2,5.26857911]
[1764147695621,0.002,2916.3,2916.2,5.23428791]
[1764147696490,0.002,2916.3,2916.2,5.45128791]
[1764147697082,0.002,2916.3,2916.2,8.17128791]
[1764147700180,0.0012,2916.3,2916.2,8.17128791]
[1764147703218,0.0012,2916.3,2916.2,7.95428791]
[1764147703516,0.0012,2916.3,2916.2,8.17128791]
[1764147706114,0.0012,2916.3,2916.2,7.95428791]
[1764147706319,0.0012,2916.3,2916.2,8.03391419]
[1764147708297,0.002,2916.9,2916.7,0.4826]
[1764147708618,0.002,2916.9,2916.8,4.5878147]
[1764147708988,0.002,2916.9,2916.8,4.72514503]
[1764147709990,0.002,2916.9,2916.8,5.23373914]
[1764147710207,0.002,2916.9,2916.8,5.31340881]